fUSD/lending_fUSD_20251117
["ID","MTS","AMOUNT","RATE_DAILY","PERIOD"]
[394220089,1763388642682,-539.29737387,0.00038135,30]
[394220090,1763388642692,-9325.70953923,0.00038136,2]
[394220091,1763388642702,-2814558.80729458,0.00038136,120]
[394220092,1763388642711,-2814558.80729458,0.00038136,120]
[394220093,1763388642727,-151.0,0.00038136,31]
[394220094,1763388642737,-151.0,0.00038136,31]
[394220095,1763388642747,-151.0,0.00038136,31]
[394220096,1763388642761,-151.0,0.00038136,31]
[394220097,1763388642774,-151.0,0.00038136,31]
[394220098,1763388642784,-151.0,0.00038136,31]
[394220099,1763388642795,-151.0,0.00038136,31]
[394220100,1763388642805,-151.0,0.00038136,31]
[394220101,1763388642814,-151.0,0.00038136,31]
[394220102,1763388642825,-151.0,0.00038136,31]
[394220103,1763388642835,-151.0,0.00038136,31]
[394220104,1763388642844,-151.0,0.00038136,31]
[394220105,1763388642854,-151.0,0.00038136,31]
[394220106,1763388642863,-294.734392,0.00038136,31]
[394220107,1763388642874,-151.0,0.00038136,31]
[394220108,1763388642883,-151.0,0.00038136,31]
[394220109,1763388642894,-151.0,0.00038136,31]
[394220110,1763388642904,-151.0,0.00038136,31]
[394220111,1763388642914,-185.510451,0.00038136,31]
[394220112,1763388642924,-151.0,0.00038136,31]
[394220113,1763388642933,-273.133325,0.00038136,31]
[394220114,1763388642943,-181.005969,0.00038136,31]
[394220115,1763388642952,-181.005969,0.00038136,31]
[394220116,1763388642961,-181.005969,0.00038136,31]
[394220117,1763388642974,-181.005969,0.00038136,31]
[394220118,1763388642984,-181.005969,0.00038136,31]
[394220119,1763388642994,-181.005969,0.00038136,31]
[394220120,1763388643004,-181.005969,0.00038136,31]
[394220121,1763388643014,-181.005967,0.00038136,31]
[394220122,1763388643024,-151.0,0.00038136,31]
[394220123,1763388643033,-212.910555,0.00038136,31]
[394220124,1763388643043,-151.0,0.00038136,31]
[394220125,1763388643053,-151.0,0.00038136,31]
[394220126,1763388643063,-151.0,0.00038136,31]
[394220127,1763388643073,-193.988966,0.00038136,31]
[394220128,1763388643083,-151.0,0.00038136,31]
[394220129,1763388643093,-193.988966,0.00038136,31]
[394220130,1763388643103,-193.988966,0.00038136,31]
[394220131,1763388643112,-193.988958,0.00038136,31]
[394220132,1763388643121,-250.417912,0.00038136,31]
[394220133,1763388643131,-151.0,0.00038136,30]
[394220134,1763388643140,-151.0,0.00038136,30]
[394220135,1763388643149,-164.656279,0.00038136,30]
[394220136,1763388643161,-311.791019,0.00038136,31]
[394220137,1763388643171,-311.791019,0.00038136,31]
[394220138,1763388643180,-311.791019,0.00038136,31]
[394220139,1763388643190,-311.791019,0.00038136,31]
[394220140,1763388643199,-311.791019,0.00038136,31]
[394220141,1763388643209,-311.791019,0.00038136,31]
[394220142,1763388643218,-311.791019,0.00038136,31]
[394220143,1763388643230,-311.791019,0.00038136,31]
[394220144,1763388643240,-1163.753278,0.00038136,31]
[394220145,1763388643250,-1163.753278,0.00038136,31]
[394220146,1763388643261,-240.63265,0.00038136,31]
[394220147,1763388643270,-1163.753278,0.00038136,31]
[394220148,1763388643280,-1163.753278,0.00038136,31]
[394220149,1763388643290,-286.66,0.00038137,2]
[394220150,1763388643300,-150.0,0.00038137,2]
[394220151,1763388643310,-150.0,0.00038137,2]
[394220152,1763388643320,-150.0,0.00038137,2]
[394220153,1763388643330,-150.0,0.00038137,2]
[394220154,1763388643339,-150.0,0.00038137,2]
[394220155,1763388643348,-150.0,0.00038137,2]
[394220156,1763388643358,-150.0,0.00038137,2]
[394220157,1763388643367,-500.0,0.00038141,2]
[394220158,1763388643377,-500.0,0.00038141,2]
[394220160,1763388643386,-1004.67,0.0003816,2]
[394220162,1763388643395,-1220.42775844,0.00038164,30]
[394220164,1763388643405,-776.53,0.000382,2]
[394220166,1763388643415,-165.04936695,0.00038208,2]
[394220167,1763388643424,-154.56252507,0.00038247,30]
[394220168,1763388643434,-170.81690695,0.00038271,30]
[394220169,1763388643443,-500.0,0.00038291,2]
[394220170,1763388643452,-566.92,0.00038291,2]
[394220171,1763388643461,-500.0,0.00038291,2]
[394220172,1763388643472,-337.68888476,0.00038291,2]
[394220173,1763388643482,-300.0,0.00038291,2]
[394220174,1763388643491,-250.0,0.000383,120]
[394220175,1763388643501,-1220.42775844,0.00038329,30]
[394220176,1763388643511,-151.0,0.00038356,120]
[394220177,1763388643521,-236.260499,0.00038356,120]
[394220178,1763388643530,-151.0,0.00038356,120]
[394220179,1763388643540,-500.0,0.00038356,30]
[394220180,1763388643550,-150.64830389,0.00038356,5]
[394220181,1763388643559,-363.22267496,0.00038376,2]
[394220182,1763388643568,-498.07623,0.0003841,2]
[394220183,1763388643578,-154.56252507,0.00038411,30]
[394220184,1763388643591,-500.0,0.00038415,2]
[394220185,1763388643601,-500.0,0.00038415,2]
[394220186,1763388643611,-1000.0,0.00038421,5]
[394220187,1763388643620,-794.42607375,0.00038421,5]
[394220188,1763388643630,-1000.0,0.00038421,5]
[394220189,1763388643639,-293.2045689,0.00038421,5]
[394220190,1763388643648,-161.38,0.00038435,2]
[394220191,1763388643658,-1220.42775844,0.00038466,30]
[394220192,1763388643667,-500.0,0.00038521,5]
[394220193,1763388643676,-488.0,0.00038565,8]
[394220194,1763388643685,-566.92,0.00038565,2]
[394220195,1763388643695,-500.0,0.00038565,2]
[394220196,1763388643704,-154.56252507,0.00038603,30]
[394220197,1763388643714,-500.0,0.0003863,30]
[394220198,1763388643726,-1220.42775844,0.0003863,30]
[394220199,1763388643736,-165.04936695,0.00038644,2]
[394220200,1763388643747,-154.45094947,0.00038684,120]
[394220201,1763388643759,-154.4,0.00038684,120]
[394220202,1763388643768,-500.0,0.00038689,2]
[394220203,1763388643778,-500.0,0.00038689,2]
[394220204,1763388643788,-5540.0,0.000387,117]
[394220205,1763388643798,-207.27,0.00038744,2]
[394220206,1763388643807,-1220.42775844,0.00038767,30]
[394220207,1763388643817,-154.4,0.00038784,120]
[394220208,1763388643828,-154.56252507,0.00038795,30]
[394220209,1763388643838,-1471.52287929,0.000388,30]
[394220210,1763388643847,-566.92,0.00038839,2]
[394220211,1763388643857,-500.0,0.00038839,2]
[394220212,1763388643866,-1004.67,0.0003888,2]
[394220213,1763388643875,-154.4,0.00038884,120]
[394220214,1763388643885,-500.0,0.00038904,30]
[394220215,1763388643895,-498.07624,0.0003891,2]
[394220216,1763388643904,-1220.42775844,0.00038932,30]
[394220217,1763388643914,-169.45,0.00038959,2]
[394220218,1763388643923,-354.7,0.00038959,2]
[394220219,1763388643933,-354.7,0.00038959,2]
[394220220,1763388643943,-169.45,0.00038959,2]
[394220221,1763388643952,-177.35,0.00038959,2]
[394220222,1763388643961,-150.0,0.00038959,2]
[394220223,1763388643972,-169.45,0.00038959,2]
[394220224,1763388643981,-338.37,0.00038959,2]
[394220225,1763388643990,-150.0,0.00038959,2]
[394220226,1763388644000,-338.9,0.00038959,2]
[394220227,1763388644009,-150.0,0.00038959,2]
[394220228,1763388644018,-900.0,0.00038961,2]
[394220229,1763388644027,-900.0,0.00038961,2]
[394220230,1763388644036,-500.0,0.00038963,2]
[394220231,1763388644046,-500.0,0.00038963,2]
[394220232,1763388644055,-1500.0,0.00038968,5]
[394220233,1763388644065,-363.22267496,0.00038971,2]
[394220234,1763388644074,-154.4,0.00038984,120]
[394220235,1763388644083,-154.56252507,0.00038986,30]
[394220236,1763388644092,-50000.0,0.00039,39]
[394220237,1763388644102,-178.0,0.00039,30]
[394220238,1763388644111,-1220.42775844,0.00039068,30]
[394220239,1763388644120,-165.04936695,0.00039079,2]
[394220240,1763388644129,-154.4,0.00039084,120]
[394220241,1763388644139,-776.53,0.000391,30]
[394220242,1763388644148,-284.66829763,0.000391,30]
[394220243,1763388644157,-566.92,0.00039113,2]
[394220244,1763388644167,-500.0,0.00039113,2]
[394220245,1763388644176,-900.0,0.00039161,2]
[394220246,1763388644186,-900.0,0.00039161,2]
[394220247,1763388644195,-900.0,0.00039161,2]
[394220248,1763388644204,-500.0,0.00039178,30]
[394220249,1763388644214,-154.56252507,0.00039178,30]
[394220250,1763388644224,-154.4,0.00039184,120]
[394220251,1763388644234,-1220.42775844,0.00039233,30]
[394220252,1763388644243,-500.0,0.00039237,2]
[394220253,1763388644252,-220.20733954,0.00039237,2]
[394220254,1763388644262,-154.56252507,0.00039342,30]
[394220255,1763388644271,-229.08546414,0.0003936,2]
[394220256,1763388644280,-488.0,0.00039387,9]
[394220257,1763388644291,-566.92,0.00039387,2]
[394220258,1763388644300,-200.9225493,0.00039387,2]
[394220259,1763388644310,-1220.42775844,0.00039397,30]
[394220260,1763388644319,-498.07623,0.0003941,2]
[394220261,1763388644329,-500.0,0.00039452,30]
[394220262,1763388644340,-900.0,0.00039461,2]
[394220263,1763388644349,-900.0,0.00039461,2]
[394220264,1763388644358,-900.0,0.00039461,2]
[394220265,1763388644368,-500.0,0.00039511,2]
[394220266,1763388644377,-165.04936695,0.00039514,2]
[394220267,1763388644387,-369.33093842,0.00039516,5]
[394220268,1763388644397,-1220.42775844,0.00039534,30]
[394220269,1763388644406,-154.56252507,0.00039534,30]
[394220270,1763388644416,-900.0,0.0003956,2]
[394220271,1763388644425,-900.0,0.0003956,2]
[394220272,1763388644435,-363.22267496,0.00039566,2]
[394220273,1763388644445,-1004.67,0.000396,30]
[394220274,1763388644454,-279.73,0.00039654,2]
[394220275,1763388644464,-900.0,0.0003966,2]
[394220276,1763388644474,-900.0,0.0003966,2]
[394220277,1763388644484,-566.92,0.00039661,2]
[394220278,1763388644494,-161.38,0.00039663,2]
[394220279,1763388644503,-16396.10463474,0.00039693,2]
[394220280,1763388644513,-221.39638378,0.00039693,2]
[394220281,1763388644523,-218.8096058,0.00039693,2]
[394220282,1763388644533,-250.0,0.000397,120]
[394220283,1763388644543,-1156.38,0.00039726,120]
[394220284,1763388644553,-1156.38,0.00039726,120]
[394220285,1763388644562,-1156.38,0.00039726,120]
[394220286,1763388644571,-1156.38,0.00039726,120]
[394220287,1763388644581,-1156.38,0.00039726,120]
[394220288,1763388644591,-1156.38,0.00039726,120]
[394220289,1763388644600,-1156.38,0.00039726,120]
[394220290,1763388644610,-1156.38,0.00039726,120]
[394220291,1763388644619,-1156.38,0.00039726,120]
[394220292,1763388644628,-1156.38,0.00039726,120]
[394220293,1763388644637,-1156.38,0.00039726,120]
[394220294,1763388644647,-1156.38,0.00039726,120]
[394220295,1763388644656,-1156.38,0.00039726,120]
[394220296,1763388644666,-1156.38,0.00039726,120]
[394220297,1763388644675,-1156.38,0.00039726,120]
[394220298,1763388644685,-1156.38,0.00039726,120]
[394220299,1763388644694,-1156.38,0.00039726,120]
[394220300,1763388644703,-1156.38,0.00039726,120]
[394220301,1763388644712,-1156.38,0.00039726,120]
[394220302,1763388644722,-1156.38,0.00039726,120]
[394220303,1763388644732,-1156.38,0.00039726,120]
[394220304,1763388644741,-1156.38,0.00039726,120]
[394220305,1763388644754,-1156.38,0.00039726,120]
[394220306,1763388644764,-1156.43382792,0.00039726,120]
[394220307,1763388644773,-500.0,0.00039726,30]
[394220308,1763388644782,-900.0,0.0003976,2]
[394220309,1763388644792,-185.54298179,0.00039762,34]
[394220310,1763388644802,-150.0,0.00039781,2]
[394220311,1763388644812,-150.0,0.00039781,2]
[394220312,1763388644825,-150.0,0.00039781,2]
[394220313,1763388644835,-150.0,0.00039781,2]
[394220314,1763388644845,-150.0,0.00039781,2]
[394220315,1763388644855,-150.0,0.00039781,2]
[394220316,1763388644864,-150.0,0.00039781,2]
[394220317,1763388644874,-175.95,0.00039781,2]
[394220318,1763388644883,-500.0,0.00039785,2]
[394220319,1763388644892,-151.0,0.00039854,7]
[394220320,1763388644902,-900.0,0.0003986,2]
[394220321,1763388644911,-900.0,0.0003986,2]
[394220322,1763388644921,-900.0,0.0003986,2]
[394220323,1763388644930,-498.07624,0.0003991,2]
[394220324,1763388644940,-566.92,0.00039935,2]
[394220325,1763388644949,-900.0,0.0003996,2]
[394220326,1763388644959,-900.0,0.0003996,2]
[394220327,1763388644968,-900.0,0.0003996,3]
[394220328,1763388644980,-357.65161985,0.00039999,31]
[394220329,1763388644989,-199.12959069,0.00039999,31]
[394220330,1763388644999,-500.0,0.00039999,15]
[394220331,1763388645009,-500.0,0.00039999,31]
[394220332,1763388645018,-500.0,0.00039999,2]
[394220333,1763388645027,-500.0,0.00039999,31]
[394220334,1763388645036,-500.0,0.00039999,7]
[394220335,1763388645046,-202.49325871,0.00039999,2]
[394220336,1763388645055,-500.0,0.00039999,31]
[394220337,1763388645064,-500.0,0.00039999,15]
[394220338,1763388645073,-500.0,0.00039999,31]
[394220339,1763388645083,-500.0,0.00039999,7]
[394220340,1763388645092,-428.34834244,0.00039999,15]
[394220341,1763388645101,-500.0,0.00039999,31]
[394220342,1763388645110,-500.0,0.00039999,7]
[394220343,1763388645120,-500.0,0.00039999,31]
[394220344,1763388645129,-500.0,0.00039999,31]
[394220345,1763388645138,-594.30029657,0.00039999,7]
[394220346,1763388645147,-500.0,0.00039999,31]
[394220347,1763388645157,-500.0,0.00039999,31]
[394220348,1763388645375,-500.0,0.00039999,31]
[394220349,1763388645385,-500.0,0.00039999,31]
[394220350,1763388645395,-500.0,0.00039999,31]
[394220351,1763388645405,-500.0,0.00039999,31]
[394220352,1763388645414,-500.0,0.00039999,31]
[394220353,1763388645425,-500.0,0.00039999,31]
[394220354,1763388645435,-500.0,0.00039999,31]
[394220355,1763388645444,-500.0,0.00039999,31]
[394220356,1763388645454,-500.0,0.00039999,31]
[394220357,1763388645464,-500.0,0.00039999,31]
[394220358,1763388645474,-500.0,0.00039999,31]
[394220359,1763388645484,-500.0,0.00039999,31]
[394220360,1763388645494,-500.0,0.00039999,31]
[394220361,1763388645503,-500.0,0.00039999,31]
[394220362,1763388645513,-500.0,0.00039999,31]
[394220363,1763388645524,-500.0,0.00039999,31]
[394220365,1763388645535,-500.0,0.00039999,31]
[394220367,1763388645546,-500.0,0.00039999,31]
[394220368,1763388645556,-500.0,0.00039999,31]
[394220369,1763388645566,-500.0,0.00039999,31]
[394220370,1763388645575,-500.0,0.00039999,31]
[394220371,1763388645585,-500.0,0.00039999,31]
[394220372,1763388645595,-500.0,0.00039999,31]
[394220373,1763388645604,-500.0,0.00039999,31]
[394220374,1763388645614,-500.0,0.00039999,31]
[394220375,1763388645623,-500.0,0.00039999,31]
[394220376,1763388645633,-500.0,0.00039999,31]
[394220377,1763388645642,-500.0,0.00039999,31]
[394220378,1763388645651,-500.0,0.00039999,31]
[394220379,1763388645661,-500.0,0.00039999,31]
[394220380,1763388645670,-500.0,0.00039999,31]
[394220381,1763388645679,-500.0,0.00039999,31]
[394220382,1763388645689,-500.0,0.00039999,31]
[394220383,1763388645699,-500.0,0.00039999,31]
[394220384,1763388645708,-500.0,0.00039999,31]
[394220385,1763388645717,-500.0,0.00039999,31]
[394220386,1763388645728,-500.0,0.00039999,31]
[394220387,1763388645738,-500.0,0.00039999,31]
[394220388,1763388645748,-500.0,0.00039999,31]
[394220389,1763388645763,-307.68070584,0.00039999,31]
[394220390,1763388645772,-500.0,0.00039999,31]
[394220391,1763388645781,-500.0,0.00039999,31]
[394220392,1763388645791,-500.0,0.00039999,31]
[394220393,1763388645801,-500.0,0.00039999,31]
[394220394,1763388645810,-500.0,0.00039999,31]
[394220395,1763388645819,-414.20796635,0.00039999,31]
[394220396,1763388645830,-500.0,0.00039999,31]
[394220397,1763388645839,-500.0,0.00039999,31]
[394220398,1763388645848,-500.0,0.00039999,31]
[394220399,1763388645858,-500.0,0.00039999,31]
[394220400,1763388645869,-623.77151657,0.00039999,31]
[394220401,1763388645879,-500.70471959,0.00039999,31]
[394220402,1763388645890,-50000.0,0.0004,40]
[394220403,1763388645900,-500.0,0.0004,30]
[394220404,1763388645910,-222.0,0.0004,2]
[394220405,1763388645920,-776.53,0.0004,30]
[394220406,1763388645930,-178.0,0.0004,30]
[394220407,1763388645940,-1316.1601462,0.0004,120]
[394220408,1763388645949,-178.0,0.0004,2]
[394220409,1763388645959,-5000.0,0.0004,120]
[394220410,1763388645970,-503.8314516,0.0004,120]
[394220411,1763388645983,-207.27,0.0004005,2]
[394220412,1763388645993,-527.247811,0.00040058,120]
[394220414,1763388646005,-162.64827273,0.00040059,2]
[394220416,1763388646016,-900.0,0.0004006,2]
[394220417,1763388646026,-900.0,0.0004006,2]
[394220418,1763388646037,-500.0,0.00040063,7]
[394220419,1763388646049,-500.0,0.00040063,7]
[394220420,1763388646059,-1020.35,0.00040137,2]
[394220421,1763388646070,-1400.78,0.00040137,2]
[394220422,1763388646080,-900.0,0.0004016,2]
[394220423,1763388646090,-900.0,0.0004016,2]
[394220424,1763388646099,-363.22267496,0.0004016,2]
[394220425,1763388646109,-577.59221488,0.00040209,10]
[394220426,1763388646119,-566.92,0.00040209,2]
[394220427,1763388646129,-1179.0,0.00040223,30]
[394220428,1763388646139,-500.0,0.00040274,30]
[394220429,1763388646149,-1004.67,0.0004032,120]
[394220430,1763388646159,-900.0,0.0004046,2]
[394220431,1763388646169,-900.0,0.0004046,2]
[394220432,1763388646178,-700.23,0.00040466,2]
[394220433,1763388646188,-566.92,0.00040483,2]
[394220434,1763388646197,-2500.0,0.00040491,14]
[394220435,1763388646207,-2500.0,0.000405,14]
[394220436,1763388646229,-334.94896325,0.00040519,14]
[394220437,1763388646239,-2500.0,0.00040519,14]
[394220438,1763388646248,-500.0,0.00040548,30]
[394220439,1763388646257,-900.0,0.00040559,2]
[394220440,1763388646268,-152.0,0.00040588,4]
[394220441,1763388646280,-1179.0,0.00040637,30]
[394220442,1763388646290,-150.66,0.00040655,120]
[394220443,1763388646299,-900.0,0.00040659,7]
[394220444,1763388646309,-900.0,0.00040659,2]
[394220445,1763388646318,-900.0,0.00040659,2]
[394220446,1763388646328,-900.0,0.00040659,2]
[394220447,1763388646338,-900.0,0.00040659,2]
[394220448,1763388646347,-900.0,0.00040659,4]
[394220449,1763388646357,-363.22267496,0.00040755,2]
[394220450,1763388646367,-566.92,0.00040757,2]
[394220451,1763388646378,-900.0,0.00040759,2]
[394220452,1763388646389,-169.65200003,0.0004082,15]
[394220453,1763388646399,-229.08546414,0.0004082,120]
[394220454,1763388646409,-500.0,0.00040822,30]
[394220455,1763388646419,-900.0,0.00040859,2]
[394220456,1763388646429,-900.0,0.00040859,7]
[394220457,1763388646439,-161.38,0.00040891,2]
[394220458,1763388646449,-951.44000913,0.000409,120]
[394220459,1763388646460,-50000.0,0.00040913,120]
[394220460,1763388646470,-52423.48017857,0.00040915,120]
[394220461,1763388646486,-2244215.7857077,0.0004092,120]
[394220462,1763388646509,-47116.5695,0.0004092,120]
[394220463,1763388646521,-337.77811709,0.0004092,120]
[394220464,1763388646533,-409.4016062,0.0004092,120]
[394220465,1763388646550,-2000.0,0.0003793,120]
[394220466,1763388646560,-701.62,0.0004092,120]
[394220467,1763388646942,-250.0,0.00037743,2]
[394220468,1763388646954,-168.12359549,0.00037743,2]
[394220469,1763388646964,-357.67640451,0.00037878,31]
[394220470,1763388646989,-806.07687349,0.00037878,31]
[394220471,1763388646999,-151.0,0.00037878,31]
[394220472,1763388647008,-613.90532056,0.0003793,120]
[394220473,1763388647042,-1277.96267944,0.0003793,120]
[394220474,1763388647051,-579.56364063,0.00037979,31]
[394220475,1763388647063,-584.18963737,0.00037979,31]
[394220476,1763388647073,-221.70520875,0.00038,30]
[394220477,1763388647084,-696.558,0.00038,30]
[394220478,1763388647095,-81.73679125,0.00038,30]
[394220479,1763388647105,-182.06850992,0.00038,30]
[394220480,1763388647116,-406.21661542,0.00038,30]
[394220481,1763388648347,-2452.59867951,0.00037697,2]
[394220482,1763388648358,-3620.28163799,0.00037778,30]
[394220483,1763388648874,-166.66,0.00036234,30]
[394220484,1763388648884,-166.66,0.00036997,30]
[394220485,1763388648894,-166.66,0.00037759,30]
[394220486,1763388648904,-1379.71836201,0.00037778,30]
[394220487,1763388648914,-151.0,0.00037878,31]
[394220488,1763388648924,-151.0,0.00037878,30]
[394220489,1763388648935,-1000.0,0.0003793,90]
[394220490,1763388648946,-1000.0,0.0003793,90]
[394220491,1763388648955,-151.0,0.00037979,31]
[394220492,1763388648965,-1000.0,0.00038,30]
[394220493,1763388648978,-1163.753278,0.00038,31]
[394220494,1763388648988,-151.0,0.00038,31]
[394220495,1763388648998,-1163.753278,0.00038136,31]
[394220496,1763388649007,-1163.753278,0.00038136,31]
[394220497,1763388649018,-1163.753278,0.00038136,31]
[394220498,1763388649028,-1163.753271,0.00038136,31]
[394220499,1763388649038,-151.0,0.00038136,31]
[394220500,1763388649047,-151.0,0.00038136,31]
[394220501,1763388649057,-166.66,0.00038522,30]
[394220502,1763388649066,-166.66,0.00039285,30]
[394220503,1763388649076,-165.04936695,0.00039949,2]
[394220504,1763388649086,-166.66,0.00040048,30]
[394220505,1763388649095,-6513.03516066,0.0004092,120]
[394220506,1763388649131,-9416.56512,0.0004092,120]
[394220507,1763388649145,-3516.83198802,0.0004092,120]
[394220508,1763388649156,-941.435495,0.0004092,120]
[394220509,1763388764915,428.592623,0.00018,2]
[394220516,1763388781344,175.193514,0.00018,2]
[394220521,1763388837477,375.953498,0.00018,2]
[394220534,1763389394618,156.76,0.00017733,2]
[394220535,1763389534240,209.79,0.00013699,2]
[394220539,1763389582869,250.0,0.00017,2]
[394220541,1763389672238,96343.56687437,0.00017,2]
[394220542,1763389672261,5500.09490039,0.00017,2]
[394220549,1763389718342,11570.60099383,0.00015,3]
[394220571,1763389831709,-209.79,0.00020187,2]
[394220572,1763389831720,-151.70481619,0.000205,2]
[394220573,1763389831729,-300.0,0.00021094,2]
[394220574,1763389831739,-316.19718786,0.00022,2]
[394220575,1763389831748,-250.0,0.00022206,2]
[394220576,1763389831758,-300.0,0.00022206,2]
[394220577,1763389831767,-233.44163401,0.00022206,2]
[394220578,1763389831776,-250.0,0.00022206,2]
[394220579,1763389831786,-403.9475623,0.00022206,2]
[394220580,1763389831795,-408.31362115,0.00022206,2]
[394220581,1763389831804,-300.0,0.00022726,2]
[394220582,1763389831814,-300.0,0.00022726,2]
[394220583,1763389831823,-428.592623,0.00023885,2]
[394220584,1763389831833,-175.193514,0.00023885,2]
[394220585,1763389831842,-375.953498,0.00023885,2]
[394220586,1763389831852,-300.0,0.00024199,2]
[394220587,1763389831863,-1200.0,0.00024199,2]
[394220588,1763389831872,-300.0,0.00024199,2]
[394220589,1763389831882,-587.0,0.00024899,2]
[394220590,1763389831891,-428.592623,0.000249,3]
[394220591,1763389831901,-175.193514,0.000249,3]
[394220592,1763389831912,-375.953498,0.000249,3]
[394220593,1763389831922,-420.0,0.00026237,2]
[394220594,1763389831931,-412.151587,0.00026466,2]
[394220595,1763389831940,-156.76,0.00026599,2]
[394220596,1763389831950,-209.79,0.00026676,2]
[394220597,1763389831959,-587.0,0.00028447,2]
[394220598,1763389831969,-428.592623,0.0002905,3]
[394220599,1763389831978,-175.193514,0.0002905,3]
[394220600,1763389831987,-375.953498,0.0002905,3]
[394220601,1763389831997,-428.592623,0.0002977,2]
[394220602,1763389832006,-175.193514,0.0002977,2]
[394220603,1763389832016,-375.953498,0.0002977,2]
[394220604,1763389832026,-1160.8,0.0003283,2]
[394220605,1763389832035,-333.2322,0.00033065,2]
[394220606,1763389832045,-209.79,0.00033165,2]
[394220607,1763389832055,-428.592623,0.000332,3]
[394220608,1763389832064,-175.193514,0.000332,3]
[394220609,1763389832073,-375.953498,0.000332,3]
[394220610,1763389832083,-151.19,0.00034414,120]
[394220611,1763389832093,-537.91,0.00034553,2]
[394220612,1763389832102,-150.0,0.00035279,7]
[394220613,1763389832112,-428.592623,0.00035351,5]
[394220615,1763389832121,-175.193514,0.00035351,5]
[394220616,1763389832131,-375.953498,0.00035351,5]
[394220617,1763389832144,-156.76,0.00035466,2]
[394220618,1763389832154,-164.02,0.00035548,2]
[394220619,1763389832168,-428.592623,0.00035655,2]
[394220620,1763389832179,-175.193514,0.00035655,2]
[394220621,1763389832189,-375.953498,0.00035655,2]
[394220622,1763389832199,-1004.69,0.00036,2]
[394220623,1763389832210,-638.89,0.00036084,30]
[394220624,1763389832220,-151.0,0.000361,2]
[394220625,1763389832229,-151.0,0.000361,2]
[394220626,1763389832239,-151.0,0.000361,2]
[394220627,1763389832251,-151.0,0.000361,2]
[394220628,1763389832262,-151.0,0.000361,2]
[394220629,1763389832273,-151.0,0.000361,2]
[394220630,1763389832283,-151.0,0.000361,2]
[394220631,1763389832294,-151.0,0.000361,2]
[394220632,1763389832596,-151.0,0.000361,2]
[394220633,1763389832606,-151.0,0.000361,2]
[394220634,1763389832615,-151.0,0.000361,2]
[394220635,1763389832625,-151.0,0.000361,2]
[394220636,1763389832634,-151.0,0.000361,2]
[394220637,1763389832643,-151.0,0.000361,2]
[394220638,1763389832652,-151.0,0.000361,2]
[394220639,1763389832664,-151.0,0.000361,2]
[394220640,1763389832673,-151.0,0.000361,2]
[394220641,1763389832683,-151.0,0.000361,2]
[394220642,1763389832692,-151.0,0.000361,2]
[394220643,1763389832702,-151.0,0.000361,2]
[394220644,1763389832711,-151.0,0.000361,2]
[394220645,1763389832721,-151.0,0.000361,2]
[394220646,1763389832730,-151.0,0.000361,2]
[394220647,1763389832740,-151.0,0.000361,2]
[394220648,1763389832750,-151.0,0.000361,2]
[394220649,1763389832759,-151.0,0.000361,2]
[394220650,1763389832769,-151.0,0.000361,2]